bitfinex/quotes_SOLUSD_20250507
["timestamp","ask_amount","ask_price","bid_price","bid_amount"]
[1746589198593,5.07401724,146.47,146.46,21.22476138]
[1746589204467,5.07401724,146.47,146.45,21.22531338]
[1746589204667,152.09704435,146.49,146.45,6.82826903]
[1746589204901,137.7,146.49,146.45,21.22531338]
[1746589207772,137.7,146.49,146.45,16.02769337]
[1746589207984,153.7258855,146.49,146.44,32.28797659]
[1746589208321,5.06997674,146.48,146.44,32.28797659]
[1746589209303,5.06997674,146.48,146.44,23.08855225]
[1746589209603,21.09627339,146.48,146.44,32.28797659]
[1746589209980,5.06997674,146.47,146.44,32.28797659]
[1746589210384,5.06997674,146.47,146.43,16.02842455]
[1746589210593,9.19942434,146.45,146.4,42.5358707]
[1746589210798,9.19942434,146.45,146.41,6.83013455]
[1746589211521,5.06997674,146.44,146.4,23.09038455]
[1746589211809,158.79813861,146.44,146.4,16.26]
[1746589212493,14.26940108,146.43,146.38,6.83137677]
[1746589212694,9.19942434,146.42,146.38,16.03080111]
[1746589212995,14.26940108,146.43,146.38,16.03080111]
[1746589213189,14.26940108,146.43,146.39,9.19942434]
[1746589213600,5.06997674,146.42,146.39,16.0303669]
[1746589213903,19.45609923,146.42,146.38,21.21753091]
[1746589214407,152.08612249,146.41,146.37,30.64612249]
[1746589214699,157.15609923,146.4,146.37,16.26]
[1746589215611,5.06997674,146.39,146.37,16.26]
[1746589216798,152.08612249,146.4,146.37,16.26]
[1746589218108,137.7,146.4,146.37,37.47807181]
[1746589218330,137.7,146.4,146.38,14.38612249]
[1746589220018,137.7,146.4,146.37,37.47807181]
[1746589220716,137.7,146.4,146.37,23.09194932]
[1746589220906,137.7,146.4,146.37,37.47807181]
[1746589223019,137.7,146.4,146.39,14.38612249]
[1746589225228,137.7,146.43,146.4,6.83060109]
[1746589225923,137.7,146.43,146.4,21.21672358]
[1746589227298,137.7,146.43,146.39,14.38612249]
[1746589227726,152.08612249,146.43,146.39,14.38612249]
[1746589229324,137.7,146.43,146.39,14.38612249]
[1746589229514,152.08612249,146.43,146.4,6.83060109]
[1746589230029,137.7,146.43,146.4,6.83060109]
[1746589235734,137.7,146.43,146.39,9.20612387]
[1746589237837,137.7,146.43,146.4,6.83060109]
[1746589238351,146.90612387,146.43,146.4,6.83060109]
[1746589239518,137.7,146.43,146.41,9.20612387]
[1746589240143,137.7,146.43,146.41,16.03602656]
[1746589240439,137.7,146.43,146.41,6.82990269]
[1746589244447,146.90612387,146.43,146.39,25.46612387]
[1746589244626,146.90612387,146.43,146.4,6.83043481]
[1746589245227,5.05278582,146.42,146.4,6.83043481]
[1746589245527,14.25890969,146.42,146.4,6.83043481]
[1746589245723,14.25890969,146.42,146.39,23.09090191]
[1746589246026,146.90612387,146.43,146.39,23.09090191]
[1746589248559,5.05693351,146.42,146.39,23.09090191]
[1746589249562,146.90612387,146.43,146.39,23.09090191]
[1746589251452,5.06195812,146.42,146.39,23.09090191]
[1746589252553,5.06195812,146.41,146.39,23.09090191]
[1746589253559,146.90612387,146.43,146.39,23.09090191]
[1746589254256,146.90612387,146.43,146.39,32.29702578]
[1746589254859,5.06856023,146.42,146.39,32.29702578]
[1746589255048,14.2746841,146.42,146.39,16.26]
[1746589255755,14.2746841,146.42,146.38,16.03756485]
[1746589255941,14.2746841,146.42,146.38,6.83144098]
[1746589256146,5.06856023,146.41,146.38,16.03756485]
[1746589256650,151.9746841,146.41,146.37,49.0919397]
[1746589256861,9.20612387,146.4,146.37,49.0919397]
[1746589257331,9.20612387,146.4,146.37,23.0919397]
[1746589257535,5.06856023,146.39,146.37,16.26]
[1746589257752,9.20612387,146.38,146.34,6.83299559]
[1746589257937,9.20612387,146.37,146.33,23.07367132]
[1746589258149,9.20612387,146.37,146.33,16.24]
[1746589258390,9.20612387,146.36,146.33,16.24]
[1746589258547,137.7,146.36,146.33,16.24]
[1746589258739,5.06689491,146.35,146.33,16.24]
[1746589259538,5.06689491,146.34,146.33,16.24]
[1746589260442,5.06689491,146.34,146.31,16.04079635]
[1746589260959,6.82796213,146.46,146.34,0.14216157]
[1746589261159,9.20612387,146.45,146.4,9.20612387]
[1746589261373,9.20612387,146.45,146.4,25.44612387]
[1746589261737,14.38333067,146.44,146.4,16.24]
[1746589262759,14.38333067,146.44,146.4,23.0703132]
[1746589270477,14.38333067,146.43,146.4,23.0703132]
[1746589270651,14.38333067,146.44,146.4,23.0703132]
[1746589271356,14.38333067,146.43,146.4,23.0703132]
[1746589273669,14.38333067,146.43,146.4,16.24]
[1746589278771,14.38333067,146.43,146.39,21.21433033]
[1746589279169,152.08333067,146.43,146.39,21.21433033]
[1746589281564,158.91256184,146.43,146.38,21.21469848]
[1746589281878,153.73662537,146.43,146.38,32.27876201]
[1746589283673,9.2073942,146.39,146.37,16.22]
[1746589284065,9.2073942,146.39,146.35,32.28015204]
[1746589285873,5.06593043,146.38,146.35,37.46660301]
[1746589286977,5.06593043,146.38,146.35,23.07275784]
[1746589287154,5.06593043,146.37,146.35,6.83275784]
[1746589287357,19.4597756,146.37,146.33,30.61384517]
[1746589287670,19.4597756,146.37,146.33,16.22]
[1746589287671,14.39384517,146.36,146.33,16.22]
[1746589287981,152.09384517,146.36,146.33,16.22]
[1746589288161,14.39384517,146.34,146.3,6.83505566]
[1746589288367,14.39384517,146.33,146.29,30.61384517]
[1746589288762,14.39384517,146.33,146.29,37.44938612]
[1746589289084,5.06593043,146.32,146.29,16.22]
[1746589289768,19.4597756,146.32,146.29,16.22]
[1746589290171,14.39384517,146.32,146.29,16.22]
[1746589290472,137.7,146.34,146.3,14.39384517]
[1746589290667,152.09384517,146.34,146.3,14.39384517]
[1746589291179,152.09384517,146.34,146.31,6.83480281]
[1746589291480,5.05027638,146.33,146.32,14.39384517]
[1746589292681,152.09384517,146.38,146.32,14.39384517]
[1746589292856,152.09384517,146.38,146.34,14.39384517]
[1746589293475,152.09384517,146.38,146.35,6.83293474]
[1746589295486,14.39384517,146.37,146.34,6.83320671]
[1746589296382,14.39384517,146.37,146.31,33.32700703]
[1746589296383,14.39384517,146.37,146.32,6.8343357]
[1746589296566,14.39384517,146.36,146.32,21.22818087]
[1746589297986,14.39384517,146.37,146.33,21.22736511]
[1746589298888,137.7,146.38,146.33,21.22736511]
[1746589299290,14.39384517,146.37,146.33,21.22736511]
[1746589299469,14.39384517,146.36,146.31,6.83480281]
[1746589299675,14.39384517,146.36,146.31,21.22864798]
[1746589300390,14.39384517,146.36,146.32,14.39384517]
[1746589301690,14.39384517,146.36,146.33,6.83386865]
[1746589302188,14.39384517,146.35,146.32,6.83417158]
[1746589306603,14.39384517,146.35,146.3,6.83526999]
[1746589306791,14.39384517,146.33,146.3,6.83526999]
[1746589307294,14.39384517,146.34,146.3,6.83526999]
[1746589307478,137.7,146.33,146.29,32.8355254]
[1746589307681,152.09384517,146.33,146.29,32.8355254]
[1746589309299,152.09384517,146.33,146.29,47.22937057]
[1746589309601,137.7,146.33,146.31,14.39384517]
[1746589310190,137.7,146.37,146.31,14.39384517]
[1746589310391,137.7,146.37,146.29,49.92486848]
[1746589310392,14.39384517,146.36,146.32,14.39384517]
[1746589310605,152.09384517,146.37,146.33,14.39384517]
[1746589310810,137.7,146.37,146.33,14.39384517]
[1746589312300,137.7,146.37,146.31,17.08700703]
[1746589312476,137.7,146.37,146.33,14.39384517]
[1746589312477,152.09384517,146.37,146.33,14.39384517]
[1746589313099,152.09384517,146.37,146.32,14.39384517]
[1746589313416,14.39384517,146.36,146.32,14.39384517]
[1746589314393,14.39384517,146.36,146.32,6.8343357]
[1746589315705,14.39384517,146.35,146.32,6.8343357]
[1746589316200,14.39384517,146.36,146.32,21.22818087]
[1746589316405,137.7,146.37,146.32,21.22818087]
[1746589316588,5.04615454,146.36,146.32,21.22818087]
[1746589316889,19.43999971,146.36,146.32,21.22818087]
[1746589317201,14.39384517,146.36,146.32,21.22818087]
[1746589320002,144.53211946,146.37,146.32,21.22818087]
[1746589320195,137.7,146.37,146.33,14.39384517]
[1746589320500,19.44139597,146.36,146.32,21.22818087]
[1746589321684,152.09384517,146.37,146.33,14.39384517]
[1746589323098,14.39384517,146.36,146.32,6.8343357]
[1746589323309,14.39384517,146.35,146.32,6.8343357]
[1746589323796,14.39384517,146.35,146.31,6.83480281]
[1746589324412,14.39384517,146.34,146.3,37.44893996]
[1746589324612,14.39384517,146.33,146.3,23.05509479]
[1746589325507,5.05452211,146.32,146.3,23.05509479]
[1746589325806,5.05452211,146.32,146.31,14.39384517]
[1746589326310,152.09384517,146.35,146.31,14.39384517]
[1746589326507,137.7,146.35,146.31,14.39384517]
[1746589326707,137.7,146.35,146.33,14.39384517]
[1746589327702,14.39384517,146.39,146.34,14.39384517]
[1746589327896,14.39384517,146.37,146.33,21.22771382]
[1746589328095,14.39384517,146.36,146.32,21.22798741]
[1746589328303,5.06136357,146.35,146.32,21.22798741]
[1746589329308,14.39384517,146.37,146.32,21.22798741]
[1746589330609,5.06593131,146.36,146.32,21.22798741]
[1746589331097,19.45977648,146.36,146.32,21.22798741]
[1746589331910,14.39384517,146.35,146.32,6.83414224]
[1746589332113,5.06593131,146.36,146.31,6.83462686]
[1746589332114,19.45977648,146.34,146.31,6.83462686]
[1746589332289,14.39384517,146.32,146.3,16.22]
[1746589333204,5.06593131,146.31,146.3,16.22]
[1746589333818,5.06593131,146.31,146.3,23.05526999]
[1746589333996,5.06593131,146.31,146.3,37.44911516]
[1746589334196,5.06593131,146.31,146.3,23.05526999]
[1746589334506,5.06593131,146.31,146.3,37.44911516]
[1746589335014,5.06593131,146.31,146.3,16.22]
[1746589335191,19.45977648,146.31,146.28,6.83577769]
[1746589335388,19.45977648,146.31,146.27,32.83655339]
[1746589335607,19.45977648,146.31,146.27,6.83655339]
[1746589335994,19.45977648,146.3,146.27,6.83655339]
[1746589336596,5.06593131,146.3,146.27,21.23039856]
[1746589336913,14.39384517,146.31,146.27,21.23039856]
[1746589337815,137.7,146.32,146.27,21.23039856]
[1746589338016,14.39384517,146.31,146.27,21.23039856]
[1746589338214,19.45786431,146.31,146.27,21.23039856]
[1746589339415,14.39384517,146.29,146.27,6.83655339]
[1746589339617,14.39384517,146.29,146.26,23.05697154]
[1746589339799,14.39384517,146.28,146.26,16.22]
[1746589340525,14.39384517,146.29,146.26,23.05711275]
[1746589340819,152.09384517,146.3,146.26,23.05711275]
[1746589341320,5.06011658,146.29,146.26,23.05711275]
[1746589341521,5.06011658,146.29,146.26,37.45095792]
[1746589342619,137.7,146.3,146.26,37.45095792]
[1746589344328,5.05723041,146.29,146.26,37.45095792]
[1746589344705,5.05723041,146.29,146.27,14.39384517]
[1746589345126,137.7,146.3,146.27,14.39384517]
[1746589345731,137.7,146.3,146.28,6.83620453]
[1746589347027,5.05535081,146.29,146.28,6.83620453]
[1746589348323,5.05535081,146.29,146.28,21.2300497]
[1746589349225,14.39384517,146.33,146.28,21.2300497]
[1746589349425,152.09384517,146.34,146.3,14.39384517]
[1746589349623,5.05419174,146.32,146.31,14.39384517]
[1746589350539,137.7,146.37,146.31,30.61384517]
[1746589350723,137.7,146.37,146.34,14.39384517]
[1746589351323,137.7,146.37,146.35,6.83293474]
[1746589358339,152.09384517,146.37,146.35,6.83293474]
[1746589359013,137.7,146.37,146.35,6.83293474]
[1746589359852,152.09384517,146.37,146.34,6.83340166]
[1746589361331,137.7,146.37,146.33,6.83382344]
[1746589361533,137.7,146.37,146.33,21.22766861]
[1746589361724,152.09384517,146.37,146.33,21.22766861]
[1746589362041,152.09384517,146.37,146.32,6.8343357]
[1746589362247,137.7,146.37,146.34,14.39384517]
[1746589363149,14.39384517,146.38,146.34,14.39384517]
[1746589363636,14.39384517,146.38,146.33,14.39384517]
[1746589364137,14.39384517,146.38,146.34,6.83340166]
[1746589364640,14.39384517,146.37,146.34,6.83340166]
[1746589365037,14.39384517,146.38,146.34,6.83340166]
[1746589365734,145.4203,146.4,146.34,21.22724683]
[1746589366040,14.39384517,146.38,146.34,21.22724683]
[1746589367340,137.7,146.39,146.35,14.39384517]
[1746589367543,40.39384517,146.41,146.36,14.39384517]
[1746589367724,14.39384517,146.42,146.37,14.39384517]
[1746589367925,26.0,146.42,146.38,14.39384517]
[1746589368136,40.39384517,146.42,146.38,14.39384517]
[1746589368750,40.39384517,146.42,146.38,21.22529487]
[1746589369343,40.39384517,146.42,146.36,32.44]
[1746589369344,40.39384517,146.42,146.37,21.22563319]
[1746589369651,14.39384517,146.41,146.37,21.22563319]
[1746589370554,26.0,146.42,146.37,21.22563319]
[1746589370854,144.52920946,146.43,146.37,21.22563319]
[1746589371055,14.39384517,146.42,146.37,21.22563319]
[1746589372660,14.39384517,146.41,146.37,21.22563319]
[1746589374148,14.39384517,146.42,146.38,14.39384517]
[1746589374331,152.09384517,146.43,146.39,14.39384517]
[1746589375761,152.09384517,146.43,146.38,14.39384517]
[1746589378866,152.09384517,146.43,146.38,21.22503329]
[1746589379248,158.92317524,146.43,146.38,6.83118812]
[1746589379543,158.92317524,146.43,146.38,21.22503329]
[1746589379868,144.52933007,146.43,146.39,14.39384517]
[1746589380061,152.09384517,146.43,146.39,14.39384517]
[1746589380365,6.82893403,146.44,146.39,14.39384517]
[1746589380556,14.39384517,146.43,146.39,14.39384517]
[1746589380754,14.39384517,146.42,146.38,21.22503329]
[1746589384047,21.22310546,146.43,146.38,21.22503329]
[1746589384247,14.39384517,146.43,146.38,21.22503329]
[1746589385065,144.52893892,146.44,146.39,14.39384517]
[1746589385363,14.39384517,146.43,146.39,14.39384517]
[1746589387764,158.92278409,146.44,146.39,21.22461036]
[1746589394449,21.22308833,146.43,146.39,21.22461036]
[1746589395055,21.22308833,146.43,146.38,6.83131383]
[1746589395256,21.22308833,146.43,146.39,14.39384517]
[1746589397974,6.82924316,146.43,146.39,21.22489981]
[1746589398159,21.22308833,146.43,146.39,21.22489981]
[1746589398680,6.82924316,146.43,146.39,21.22489981]
[1746589398854,21.22308833,146.43,146.39,21.22489981]
[1746589399654,21.22308833,146.43,146.38,21.22517236]
[1746589400579,21.22308833,146.43,146.38,6.83132719]
[1746589400756,21.22308833,146.43,146.38,21.22517236]
[1746589401976,14.39384517,146.41,146.37,23.03188685]
[1746589402175,14.39384517,146.4,146.35,42.2]
[1746589402380,14.39384517,146.4,146.35,30.59384517]
[1746589402565,14.39384517,146.4,146.36,14.39384517]
[1746589403580,21.22456844,146.4,146.36,14.39384517]
[1746589405270,14.39384517,146.39,146.35,37.42655291]
[1746589406288,21.22456844,146.4,146.36,14.39384517]
[1746589407277,152.09384517,146.39,146.35,30.59384517]
[1746589407484,152.09384517,146.39,146.35,16.2]
[1746589407863,14.39384517,146.38,146.35,16.2]
[1746589408382,158.92493363,146.39,146.35,16.2]
[1746589409477,158.92493363,146.39,146.34,21.22708512]
[1746589409680,14.39384517,146.38,146.33,32.83371631]
[1746589409888,14.39384517,146.38,146.34,14.39384517]
[1746589411284,21.22557119,146.38,146.31,6.83480281]
[1746589411586,14.39384517,146.37,146.33,14.39384517]
[1746589412487,21.22586934,146.37,146.31,32.83480281]
[1746589412792,21.22586934,146.37,146.33,14.39384517]
[1746589412971,21.22586934,146.37,146.32,14.39384517]
[1746589413988,14.39384517,146.37,146.33,14.39384517]
[1746589415386,14.39384517,146.37,146.34,6.83340166]
[1746589415586,152.09384517,146.37,146.34,6.83340166]
[1746589419892,146.91398092,146.37,146.34,6.83340166]
[1746589421063,137.7,146.37,146.34,16.04738258]
[1746589423593,146.91398092,146.37,146.32,16.04831662]
[1746589423772,14.39918314,146.36,146.32,21.23351884]
[1746589424277,14.39918314,146.36,146.32,6.8343357]
[1746589424964,21.23176061,146.36,146.32,6.8343357]
[1746589425164,14.39918314,146.36,146.32,6.8343357]
[1746589425382,14.39918314,146.35,146.31,6.83458322]
[1746589425591,152.09918314,146.35,146.31,6.83458322]
[1746589426095,152.09918314,146.35,146.3,37.43427521]
[1746589426296,152.09918314,146.35,146.31,14.39918314]
[1746589426988,5.06124746,146.34,146.31,14.39918314]
[1746589427192,5.06124746,146.34,146.31,21.23392266]
[1746589427489,5.06124746,146.34,146.31,6.83473952]
[1746589427662,19.4604306,146.34,146.3,37.43437217]
[1746589428388,19.4604306,146.34,146.3,21.23437217]
[1746589428689,5.06124746,146.33,146.3,21.23437217]
[1746589429100,19.4604306,146.33,146.3,6.83518903]
[1746589429478,14.39918314,146.32,146.29,6.83564573]
[1746589433774,152.09918314,146.33,146.29,21.23482887]
[1746589434705,5.05552189,146.32,146.29,21.23482887]
[1746589435701,152.09918314,146.33,146.29,21.23482887]
[1746589435907,14.39918314,146.31,146.28,6.8360026]
[1746589436087,14.39918314,146.32,146.28,6.8360026]
[1746589436393,14.39918314,146.32,146.28,21.23518574]
[1746589437506,5.05424522,146.31,146.28,21.23518574]
[1746589438001,5.05424522,146.31,146.29,14.39918314]
[1746589438577,5.05424522,146.31,146.28,21.23518574]
[1746589438876,152.09918314,146.33,146.28,21.23518574]
[1746589439905,5.05442675,146.32,146.28,21.23518574]
[1746589440479,5.05442675,146.32,146.29,14.39918314]
[1746589441110,5.05442675,146.32,146.31,14.39918314]
[1746589441494,137.7,146.33,146.31,14.39918314]
[1746589442012,178.09918314,146.36,146.32,14.39918314]
[1746589442510,5.05719252,146.35,146.33,6.83386865]
[1746589442899,5.05719252,146.35,146.32,6.83416011]
[1746589443506,5.05719252,146.34,146.32,6.83416011]
[1746589443883,5.05719252,146.34,146.31,14.39918314]
[1746589443884,5.05719252,146.34,146.31,6.83476515]
[1746589444602,19.45637566,146.34,146.3,23.03509145]
[1746589444910,5.05719252,146.33,146.3,23.03509145]
[1746589445917,5.05719252,146.32,146.3,23.03509145]
[1746589446095,19.45637566,146.32,146.3,16.2]
[1746589446408,19.45637566,146.32,146.28,21.23507417]
[1746589446612,5.05719252,146.31,146.28,23.92640237]
[1746589446906,5.05719252,146.31,146.3,40.39918314]
[1746589447697,5.05719252,146.31,146.3,56.42056628]
[1746589447892,137.7,146.36,146.3,56.42056628]
[1746589448079,137.7,146.36,146.33,14.39918314]
[1746589449512,137.7,146.36,146.34,6.83340166]
[1746589452913,137.7,146.36,146.34,21.2325848]
[1746589454010,137.7,146.36,146.34,6.83340166]
[1746589455812,137.7,146.36,146.34,14.39918314]
[1746589456294,137.7,146.36,146.33,38.31769098]
[1746589458008,137.7,146.36,146.35,6.83293474]
[1746589460909,137.7,146.36,146.35,14.39918314]
[1746589461699,137.7,146.41,146.35,14.39918314]
[1746589461905,137.7,146.41,146.37,14.39918314]
[1746589462105,137.7,146.41,146.39,14.39918314]
[1746589462311,14.39918314,146.44,146.4,14.39918314]
[1746589462815,14.39918314,146.44,146.41,6.83013455]
[1746589464813,14.39918314,146.44,146.4,14.39918314]
[1746589465023,14.39918314,146.43,146.4,6.8305047]
[1746589465523,14.39918314,146.43,146.39,21.23006552]
[1746589470118,144.52845316,146.45,146.4,21.22944551]
[1746589470119,14.39918314,146.44,146.4,21.22944551]
[1746589470322,144.52845316,146.45,146.4,21.22944551]
[1746589470527,14.39918314,146.44,146.4,21.22944551]
[1746589471528,144.52845316,146.45,146.4,21.22944551]
[1746589471831,14.39918314,146.43,146.39,14.39918314]
[1746589472321,144.52845316,146.45,146.39,14.39918314]
[1746589472528,144.52845316,146.45,146.4,14.39918314]
[1746589472705,137.7,146.45,146.41,14.39918314]
[1746589473027,152.09918314,146.45,146.4,14.39918314]
[1746589473828,158.92746909,146.45,146.4,21.22955825]
[1746589474830,14.39918314,146.43,146.39,21.23005699]
[1746589475828,6.82893048,146.44,146.39,21.23005699]
[1746589476013,21.22811362,146.44,146.39,21.23005699]
[1746589476435,144.52846248,146.45,146.4,14.39918314]
[1746589476734,144.52846248,146.45,146.41,14.39918314]
[1746589476908,158.92764562,146.45,146.41,14.39918314]
[1746589477108,14.39918314,146.44,146.4,14.39918314]
[1746589479232,14.39918314,146.44,146.4,6.83058573]
[1746589479819,14.39918314,146.44,146.4,21.22976887]
[1746589481228,21.22792977,146.44,146.4,6.83058573]
[1746589481539,21.22792977,146.44,146.4,21.22976887]
[1746589482140,21.22792977,146.44,146.4,14.39918314]
[1746589482838,14.39918314,146.44,146.4,21.22975838]
[1746589487841,144.52843097,146.45,146.4,21.22975838]
[1746589488043,14.39918314,146.44,146.4,21.22975838]
[1746589488738,158.92761411,146.45,146.4,21.22975838]
[1746589488943,137.7,146.45,146.4,21.22975838]
[1746589489249,137.7,146.45,146.41,14.39918314]
[1746589489543,152.09918314,146.45,146.41,14.39918314]
[1746589489722,14.39918314,146.44,146.4,21.22975838]
[1746589490433,14.39918314,146.43,146.39,21.23018239]
[1746589492137,21.2286874,146.43,146.38,23.01151388]
[1746589492334,14.39918314,146.42,146.38,30.57918314]
[1746589493348,21.22909156,146.42,146.38,30.57918314]
[1746589494146,6.82990842,146.42,146.38,30.57918314]
[1746589494448,21.22909156,146.42,146.38,30.57918314]
[1746589495848,21.22909156,146.42,146.38,16.18]
[1746589497342,6.82990842,146.42,146.37,14.39918314]
[1746589497642,137.7,146.41,146.38,14.39918314]
[1746589498645,137.7,146.41,146.39,14.39918314]
[1746589499234,137.7,146.41,146.4,6.83060109]
[1746589499944,137.7,146.44,146.4,6.83060109]
[1746589500149,152.09918314,146.44,146.4,21.22978423]
[1746589500331,137.7,146.44,146.4,21.22978423]
[1746589500526,152.09918314,146.44,146.4,21.22978423]
[1746589500725,137.7,146.44,146.4,21.22978423]
[1746589501057,152.09918314,146.44,146.4,21.22978423]
[1746589501252,158.92795685,146.44,146.4,14.39918314]
[1746589501446,14.39918314,146.43,146.39,21.23007878]
[1746589501859,14.39918314,146.42,146.38,6.83137431]
[1746589502850,6.82925417,146.43,146.38,21.23055745]
[1746589503053,14.39918314,146.42,146.38,21.23055745]
[1746589504075,137.7,146.44,146.39,14.39918314]
[1746589504349,137.7,146.44,146.4,14.39918314]
[1746589505154,137.7,146.44,146.41,14.39918314]
[1746589506066,137.7,146.44,146.4,21.22956401]
[1746589506358,152.09918314,146.44,146.4,21.22956401]
[1746589506558,14.39918314,146.43,146.4,6.83038087]
[1746589507037,14.39918314,146.43,146.39,21.23015595]
[1746589507238,14.39918314,146.42,146.38,22.99133799]
[1746589507544,14.39918314,146.42,146.38,30.55918314]
[1746589508364,14.39918314,146.42,146.38,37.39068237]
[1746589508544,137.7,146.41,146.38,30.55918314]
[1746589508855,5.0846484,146.4,146.38,16.16]
[1746589509958,137.7,146.41,146.38,16.16]
[1746589510433,144.53031191,146.41,146.38,16.16]
[1746589510756,158.92949505,146.41,146.36,21.2313061]
[1746589511063,144.53031191,146.41,146.36,21.2313061]
[1746589511231,158.92949505,146.41,146.36,21.2313061]
[1746589511960,158.92949505,146.41,146.37,14.39918314]
[1746589513154,137.7,146.4,146.37,14.39918314]
[1746589516174,158.92983878,146.4,146.36,14.39918314]
[1746589516465,14.39918314,146.39,146.34,30.55918314]
[1746589516643,137.7,146.38,146.34,30.55918314]
[1746589517057,152.09918314,146.38,146.34,16.16]
[1746589517446,14.39918314,146.36,146.34,16.16]
[1746589517659,5.07105835,146.35,146.34,16.16]
[1746589517859,5.07105835,146.35,146.32,14.39918314]
[1746589518364,5.07105835,146.35,146.32,21.23350664]
[1746589518573,137.7,146.37,146.34,14.39918314]
[1746589518773,137.7,146.37,146.32,6.8343235]
[1746589518774,137.7,146.37,146.35,14.39918314]
[1746589519668,5.06938017,146.36,146.35,14.39918314]
[1746589521670,5.06938017,146.36,146.33,6.83386865]
[1746589521874,5.06938017,146.36,146.35,14.39918314]
[1746589522670,5.06938017,146.36,146.33,6.83386865]
[1746589522870,5.06938017,146.36,146.35,14.39918314]
[1746589523047,5.06938017,146.36,146.33,6.83386865]
[1746589523372,5.06938017,146.36,146.35,14.39918314]
[1746589524373,5.06938017,146.36,146.35,21.23211788]
[1746589524668,137.7,146.37,146.35,21.23211788]
[1746589526352,137.7,146.37,146.35,6.83293474]
[1746589526563,137.7,146.37,146.35,21.23211788]
[1746589527266,137.7,146.37,146.34,21.2323959]
[1746589527482,14.39918314,146.36,146.33,16.24]
[1746589528272,14.39918314,146.36,146.3,60.97566269]
[1746589528273,152.09918314,146.35,146.29,16.24]
[1746589528589,14.39918314,146.33,146.29,37.47479632]
[1746589529371,152.09918314,146.34,146.3,14.39918314]
[1746589530475,152.09918314,146.34,146.3,21.23437351]
[1746589530974,5.05635604,146.33,146.3,21.23437351]
[1746589532583,152.09918314,146.34,146.3,21.23437351]
[1746589534181,137.7,146.33,146.3,21.23437351]
[1746589534353,137.7,146.33,146.31,14.39918314]
[1746589535780,137.7,146.33,146.31,21.23375353]
[1746589537179,137.7,146.33,146.31,6.83457039]
[1746589541479,137.7,146.33,146.31,14.39918314]
[1746589543680,137.7,146.33,146.3,6.83526999]
[1746589543881,137.7,146.33,146.3,21.23445313]
[1746589545259,137.7,146.33,146.29,16.24]
[1746589545260,137.7,146.33,146.29,37.47470522]
[1746589546102,152.09918314,146.33,146.29,37.47470522]
[1746589547283,152.09918314,146.33,146.29,23.07552208]
[1746589547483,152.09918314,146.33,146.29,37.47470522]
[1746589549388,152.09918314,146.33,146.29,23.07552208]
[1746589550583,152.09918314,146.33,146.29,16.24]
[1746589550775,158.93327264,146.33,146.29,16.24]
[1746589550971,5.05659226,146.32,146.29,23.07558684]
[1746589551887,5.05659226,146.31,146.29,23.07558684]
[1746589552272,5.05659226,146.31,146.29,37.47476998]
[1746589552884,5.05659226,146.31,146.3,14.39918314]
[1746589553091,137.7,146.33,146.3,14.39918314]
[1746589553789,137.7,146.33,146.3,9.21895335]
[1746589554175,5.05841602,146.32,146.3,9.21895335]
[1746589555086,5.05841602,146.31,146.3,9.21895335]
[1746589555387,5.05841602,146.31,146.29,32.29454019]
[1746589555789,5.05841602,146.31,146.29,25.45895335]
[1746589555975,153.75294387,146.33,146.29,25.45895335]
[1746589556289,144.53399052,146.33,146.29,25.45895335]
[1746589556481,153.75294387,146.33,146.29,25.45895335]
[1746589557070,5.06366569,146.32,146.29,16.24]
[1746589557271,14.28261904,146.32,146.28,9.21895335]
[1746589557570,5.06366569,146.32,146.27,49.92798437]
[1746589557773,5.06366569,146.32,146.31,9.21895335]
[1746589557973,137.7,146.36,146.31,43.31735335]
[1746589558176,137.7,146.36,146.35,9.21895335]
[1746589558384,137.7,146.39,146.36,6.83246788]
[1746589558776,137.7,146.39,146.36,16.05142123]
[1746589559773,137.7,146.39,146.36,14.39168315]
[1746589560482,137.7,146.39,146.37,14.39168315]
[1746589566904,137.7,146.39,146.35,6.83293474]
[1746589567089,137.7,146.39,146.36,14.39168315]
[1746589567495,137.7,146.39,146.37,14.39168315]
[1746589569794,137.7,146.39,146.37,21.223578]
[1746589571904,137.7,146.39,146.37,14.39168315]
[1746589572305,137.7,146.39,146.37,21.22365283]
[1746589575110,137.7,146.39,146.37,14.39168315]
[1746589575299,14.39168315,146.38,146.34,14.39168315]
[1746589575797,14.39168315,146.37,146.32,6.8343357]
[1746589575993,14.39168315,146.37,146.33,14.39168315]
[1746589576596,21.22382854,146.37,146.33,14.39168315]
[1746589576794,158.92338734,146.38,146.33,21.22548432]
[1746589577213,158.92338734,146.38,146.34,14.39168315]
[1746589579192,137.7,146.37,146.34,14.39168315]
[1746589579393,152.09168315,146.37,146.33,21.22548432]